fUSD/lending_fUSD_20260401
["ID","MTS","AMOUNT","RATE_DAILY","PERIOD"]
[419208939,1775019045162,-799.54513345,0.00024557,2]
[419208940,1775019045170,-200.0,0.00024557,2]
[419208941,1775019045179,-209.40437684,0.00024557,2]
[419208942,1775019045188,-2379.5286,0.000246,57]
[419208943,1775019045198,-172.72,0.00024649,2]
[419208944,1775019045207,-883.13,0.00024656,2]
[419208945,1775019045216,-150.0,0.00024658,2]
[419208946,1775019045225,-10000.0,0.000248,2]
[419208947,1775019045234,-358.49657185,0.00024873,2]
[419208948,1775019045243,-825.0,0.00024882,60]
[419208949,1775019045252,-500.0,0.00024899,2]
[419208950,1775019045260,-500.0,0.00024899,2]
[419208951,1775019045270,-500.0,0.00024899,2]
[419208952,1775019045279,-500.0,0.00024899,2]
[419208953,1775019045288,-500.0,0.00024899,2]
[419208954,1775019045297,-500.0,0.00024899,2]
[419208955,1775019045305,-500.0,0.00024899,2]
[419208956,1775019045315,-246.65541121,0.00024899,2]
[419208957,1775019045324,-74133.859419,0.000249,2]
[419208958,1775019045332,-422.48,0.0002493,2]
[419208959,1775019045342,-472.0,0.00025,2]
[419208960,1775019045351,-2531.0,0.00025,2]
[419208961,1775019045360,-1036.0,0.00025,2]
[419208962,1775019045370,-485.0,0.00025,2]
[419208963,1775019045379,-2004.9555466,0.00025,2]
[419208964,1775019045388,-10064.77098001,0.00025,2]
[419208965,1775019045398,-475.0,0.00025,2]
[419208966,1775019045407,-194.72792766,0.00025105,2]
[419208967,1775019045417,-200.0,0.00025105,2]
[419208968,1775019045426,-217.15233878,0.00025105,2]
[419208969,1775019045436,-1481.23780761,0.00025105,2]
[419208970,1775019045446,-312.13772435,0.00025105,2]
[419208971,1775019045455,-829.12830338,0.00025105,2]
[419208972,1775019045465,-200.0,0.00025105,2]
[419208973,1775019045474,-217.15233878,0.00025105,2]
[419208974,1775019045483,-172.72,0.0002513,2]
[419208975,1775019045492,-1024.24998606,0.0002527,2]
[419208976,1775019045503,-1262.22,0.00025297,2]
[419208977,1775019045512,-1050.0,0.00025375,2]
[419208978,1775019045521,-1050.0,0.00025375,2]
[419208979,1775019045530,-1050.0,0.00025375,2]
[419208980,1775019045539,-1050.0,0.00025375,2]
[419208981,1775019045549,-1050.0,0.00025375,2]
[419208982,1775019045558,-1050.0,0.00025375,2]
[419208983,1775019045568,-1050.0,0.00025375,2]
[419208984,1775019045578,-1050.0,0.00025375,2]
[419208985,1775019045587,-1050.0,0.00025375,2]
[419208986,1775019045596,-869.0,0.00025375,2]
[419208987,1775019045605,-422.48,0.0002539,2]
[419208988,1775019045614,-172.72,0.00025611,2]
[419208989,1775019045625,-201.93286099,0.00025653,2]
[419208990,1775019045634,-208.87532976,0.00025653,2]
[419208991,1775019045643,-225.18697532,0.00025653,2]
[419208992,1775019045653,-1536.04360649,0.00025653,2]
[419208993,1775019045662,-253.60324636,0.00025653,2]
[419208994,1775019045672,-859.80605061,0.00025653,2]
[419208995,1775019045681,-200.0,0.00025653,2]
[419208996,1775019045691,-155.50836306,0.00025653,2]
[419208997,1775019045700,-1115.0,0.00025771,2]
[419208998,1775019045709,-1000.0,0.0002585,2]
[419208999,1775019045718,-150.0,0.0002589,2]
[419209000,1775019045728,-472.0,0.00026,2]
[419209001,1775019045738,-2531.0,0.00026,2]
[419209002,1775019045748,-1036.0,0.00026,2]
[419209003,1775019045760,-485.0,0.00026,2]
[419209004,1775019045770,-475.0,0.00026,2]
[419209005,1775019045780,-3059.2726,0.00026,62]
[419209006,1775019045791,-805.6,0.00026092,2]
[419209007,1775019045801,-232.12,0.00026142,30]
[419209008,1775019045810,-599.60298507,0.000262,2]
[419209009,1775019045819,-209.40437684,0.00026201,2]
[419209010,1775019045828,-233.51889341,0.00026201,2]
[419209011,1775019045838,-1592.87721993,0.00026201,2]
[419209012,1775019045847,-891.61887448,0.00026201,2]
[419209013,1775019045856,-200.0,0.00026201,2]
[419209014,1775019045864,-22076.06610508,0.00026382,2]
[419209015,1775019045873,-20448.05043972,0.00026664,2]
[419209016,1775019045883,-217.15233878,0.00026749,2]
[419209017,1775019045892,-242.15909246,0.00026749,2]
[419209018,1775019045902,-1651.81367706,0.00026749,2]
[419209019,1775019045911,-966.21680549,0.00026749,2]
[419209020,1775019045921,-201.94818926,0.00026749,2]
[419209021,1775019045932,-2000.0,0.00026851,2]
[419209022,1775019045941,-2000.0,0.00026851,2]
[419209023,1775019045951,-2000.0,0.00026851,2]
[419209024,1775019045960,-2000.0,0.00026851,2]
[419209025,1775019045970,-2000.0,0.00026851,2]
[419209026,1775019045980,-2000.0,0.00026851,2]
[419209027,1775019045990,-2000.0,0.00026851,2]
[419209028,1775019046000,-2000.0,0.00026851,2]
[419209029,1775019046010,-2000.0,0.00026851,2]
[419209030,1775019046019,-1624.0,0.00026851,2]
[419209031,1775019046028,-2000.0,0.00026889,2]
[419209032,1775019046039,-2000.0,0.00026889,2]
[419209033,1775019046049,-2000.0,0.00026889,2]
[419209034,1775019046061,-2000.0,0.00026889,2]
[419209035,1775019046071,-2000.0,0.00026889,2]
[419209036,1775019046080,-2000.0,0.00026889,2]
[419209037,1775019046090,-2000.0,0.00026889,2]
[419209038,1775019046101,-2000.0,0.00026889,2]
[419209039,1775019046111,-2000.0,0.00026889,2]
[419209040,1775019046119,-1807.0,0.00026889,2]
[419209041,1775019046129,-267.52,0.000269,15]
[419209042,1775019046137,-2583.42,0.000269,15]
[419209043,1775019046147,-800.0,0.00026986,120]
[419209044,1775019046156,-800.0,0.00026986,120]
[419209045,1775019046167,-473.0,0.00027,2]
[419209046,1775019046178,-2537.67305915,0.00027,2]
[419209047,1775019046187,-1045.62658029,0.00027,2]
[419209048,1775019046198,-499.2014381,0.00027,2]
[419209049,1775019046209,-494.08733496,0.00027,2]
[419209050,1775019046219,-1115.0,0.0002706,2]
[419209051,1775019046228,-201.83,0.0002716,30]
[419209052,1775019046237,-150.0,0.00027185,2]
[419209053,1775019046248,-225.18697532,0.00027297,2]
[419209054,1775019046259,-329.87748724,0.00027297,2]
[419209055,1775019046270,-285.40491142,0.000273,30]
[419209056,1775019046281,-285.40491141,0.000273,30]
[419209057,1775019046291,-825.0,0.00027323,60]
[419209058,1775019046301,-450.66053804,0.00027397,2]
[419209059,1775019046310,-156.74,0.00027397,2]
[419209060,1775019046320,-300.0,0.00027397,2]
[419209061,1775019046330,-323.37602213,0.00027397,2]
[419209062,1775019046339,-1000.0,0.00027397,20]
[419209063,1775019046348,-11351.37,0.00027397,10]
[419209064,1775019046357,-9459.47,0.00027397,10]
[419209065,1775019046367,-7882.9,0.00027397,10]
[419209066,1775019046376,-180.02150181,0.00027436,2]
[419209067,1775019046384,-2580.7743877,0.0002746,2]
[419209068,1775019046394,-3933.1945,0.000275,67]
[419209069,1775019046403,-2000.0,0.00027694,2]
[419209070,1775019046413,-2000.0,0.00027694,2]
[419209071,1775019046422,-2000.0,0.00027694,2]
[419209072,1775019046431,-2000.0,0.00027694,2]
[419209073,1775019046441,-2000.0,0.00027694,2]
[419209074,1775019046450,-2000.0,0.00027694,2]
[419209075,1775019046459,-2000.0,0.00027694,2]
[419209076,1775019046468,-2000.0,0.00027694,2]
[419209077,1775019046477,-2000.0,0.00027694,2]
[419209078,1775019046486,-2000.0,0.00027694,2]
[419209079,1775019046495,-233.51889341,0.00027845,2]
[419209080,1775019046505,-200.0,0.00028,3]
[419209081,1775019046514,-1214.29,0.00028007,2]
[419209082,1775019046524,-242.15909246,0.00028393,2]
[419209083,1775019046533,-1115.0,0.00028413,5]
[419209084,1775019046542,-805.6,0.00028506,2]
[419209085,1775019046551,-328.037422,0.00028526,14]
[419209086,1775019046560,-150.0,0.00028544,2]
[419209087,1775019046570,-500.0,0.00028767,120]
[419209088,1775019046579,-500.0,0.00028767,120]
[419209089,1775019046589,-500.0,0.00028767,120]
[419209090,1775019046598,-500.0,0.00028767,120]
[419209091,1775019046607,-500.0,0.00028767,120]
[419209092,1775019046617,-500.0,0.00028767,120]
[419209093,1775019046626,-204.78266092,0.00028767,120]
[419209094,1775019046635,-5056.7638,0.000289,72]
[419209095,1775019046644,-616.92116545,0.00028939,2]
[419209096,1775019046653,-251.11897888,0.00028941,2]
[419209097,1775019046663,-990.492857,0.00028997,14]
[419209098,1775019046672,-2000.0,0.00029,2]
[419209099,1775019046681,-1444.0,0.00029041,120]
[419209100,1775019046692,-22076.06610508,0.00029339,2]
[419209101,1775019046701,-260.4103811,0.00029489,2]
[419209102,1775019046711,-20448.05043972,0.00029668,2]
[419209103,1775019046720,-544.750743,0.00029679,14]
[419209104,1775019046729,-825.0,0.00029764,60]
[419209105,1775019046738,-1115.0,0.00029833,5]
[419209106,1775019046747,-150.0,0.00029971,2]
[419209107,1775019046756,-30000.0,0.00029991,2]
[419209108,1775019046766,-500.0,0.0003,2]
[419209109,1775019046775,-363.51560483,0.0003,30]
[419209110,1775019046784,-200.0,0.0003,3]
[419209111,1775019046793,-363.51560483,0.0003,30]
[419209112,1775019046802,-2009.43479163,0.0003,15]
[419209113,1775019046811,-200.0,0.0003,3]
[419209114,1775019046820,-1009.9,0.0003,30]
[419209115,1775019046830,-2866.96210177,0.0003,2]
[419209116,1775019046839,-324.9045405,0.00030037,2]
[419209117,1775019046848,-201.83,0.000301,120]
[419209118,1775019046856,-201.83,0.000301,120]
[419209119,1775019046865,-207.31,0.000301,120]
[419209120,1775019046874,-207.32,0.000301,120]
[419209121,1775019046883,-160.98,0.000301,120]
[419209122,1775019046892,-192.27,0.000301,120]
[419209123,1775019046902,-150.0,0.00030136,20]
[419209124,1775019046911,-164.36,0.00030137,2]
[419209125,1775019046920,-500.0,0.00030137,120]
[419209126,1775019046929,-10000.0,0.000302,120]
[419209127,1775019046938,-232.12,0.00030284,60]
[419209128,1775019046947,-1009.9,0.00030312,30]
[419209129,1775019046956,-6501.2956,0.000304,77]
[419209130,1775019046965,-1009.9,0.00030625,30]
[419209131,1775019046973,-228.95384873,0.00030685,2]
[419209132,1775019046982,-1000.0,0.00030743,120]
[419209133,1775019046991,-805.6,0.00030919,2]
[419209134,1775019047000,-1009.9,0.00030937,30]
[419209135,1775019047010,-150.0,0.0003096,120]
[419209136,1775019047019,-160.0,0.00031,120]
[419209137,1775019047028,-160.0,0.00031,120]
[419209138,1775019047037,-150.0,0.00031175,120]
[419209139,1775019047046,-10000.0,0.000312,120]
[419209140,1775019047055,-1009.9,0.0003125,30]
[419209141,1775019047066,-150.0,0.00031273,120]
[419209142,1775019047075,-1115.0,0.00031325,5]
[419209143,1775019047085,-162.0,0.00031399,3]
[419209144,1775019047095,-2809.0,0.00031399,3]
[419209145,1775019047104,-2809.0,0.000314,3]
[419209146,1775019047114,-160.0,0.000314,3]
[419209147,1775019047125,-150.0,0.0003147,2]
[419209148,1775019047135,-500.0,0.00031507,120]
[419209149,1775019047144,-150.0,0.00031533,120]
[419209150,1775019047153,-1009.9,0.00031563,30]
[419209151,1775019047163,-152.0,0.00031618,3]
[419209152,1775019047172,-1166.36,0.00031621,2]
[419209153,1775019047180,-622.761,0.00031636,2]
[419209154,1775019047190,-1045.0,0.00031636,2]
[419209155,1775019047199,-1351.985,0.00031636,2]
[419209156,1775019047207,-3519.0,0.00031636,2]
[419209157,1775019047216,-1263.0,0.00031636,2]
[419209158,1775019047225,-150.18,0.00031636,2]
[419209159,1775019047235,-415.0,0.00031636,2]
[419209160,1775019047245,-6016.0,0.00031636,2]
[419209161,1775019047254,-8358.477,0.000318,82]
[419209162,1775019047263,-150.0,0.0003182,120]
[419209163,1775019047272,-1009.9,0.00031875,30]
[419209164,1775019047282,-160.0,0.00032,3]
[419209165,1775019047291,-160.0,0.00032,120]
[419209166,1775019047300,-616.22870763,0.00032,120]
[419209167,1775019047309,-1490.70499641,0.00032,120]
[419209168,1775019047319,-268.17305255,0.00032,120]
[419209169,1775019047328,-506.36666556,0.00032,120]
[419209170,1775019047337,-429.65546234,0.00032,120]
[419209171,1775019047347,-403.10901148,0.00032,120]
[419209172,1775019047356,-184.6398266,0.00032,120]
[419209173,1775019047365,-223.9430648,0.00032,120]
[419209174,1775019047374,-179.7765907,0.00032,120]
[419209175,1775019047384,-160.0,0.00032,30]
[419209176,1775019047393,-162.0,0.00032034,3]
[419209177,1775019047402,-1571.0,0.00032037,3]
[419209178,1775019047411,-1009.9,0.00032187,120]
[419209179,1775019047420,-85009.0,0.000322,2]
[419209180,1775019047429,-825.0,0.00032205,60]
[419209181,1775019047439,-363.51560483,0.00032222,30]
[419209182,1775019047448,-363.51560483,0.00032222,30]
[419209183,1775019047460,-150.0,0.0003225,120]
[419209184,1775019047469,-22076.06610508,0.00032296,2]
[419209185,1775019047479,-374.99530866,0.00032329,7]
[419209186,1775019047488,-2809.0,0.0003236,11]
[419209187,1775019047497,-150.0,0.00032445,120]
[419209188,1775019047506,-1009.9,0.000325,120]
[419209189,1775019047516,-20448.05043972,0.00032672,2]
[419209190,1775019047526,-150.0,0.0003268,120]
[419209191,1775019047535,-2809.0,0.0003268,11]
[419209192,1775019047544,-2000.0,0.000327,2]
[419209193,1775019047553,-299.04270038,0.000327,2]
[419209194,1775019047563,-299.04270032,0.000327,2]
[419209195,1775019047572,-299.04270032,0.000327,2]
[419209196,1775019047581,-299.04270032,0.000327,2]
[419209197,1775019047591,-299.04270032,0.000327,2]
[419209198,1775019047599,-299.04270032,0.000327,2]
[419209199,1775019047609,-299.04270032,0.000327,2]
[419209200,1775019047618,-299.04270032,0.000327,2]
[419209201,1775019047627,-299.04270032,0.000327,2]
[419209202,1775019047636,-299.04270032,0.000327,2]
[419209203,1775019047646,-299.04270032,0.000327,2]
[419209204,1775019047655,-299.04270032,0.000327,2]
[419209205,1775019047664,-299.04270032,0.000327,2]
[419209206,1775019047674,-299.04270032,0.000327,2]
[419209207,1775019047683,-299.04270032,0.000327,2]
[419209208,1775019047692,-299.04270032,0.000327,2]
[419209209,1775019047701,-299.04270032,0.000327,2]
[419209210,1775019047711,-299.04270032,0.000327,2]
[419209211,1775019047720,-299.04270032,0.000327,2]
[419209212,1775019047730,-299.04270032,0.000327,2]
[419209213,1775019047739,-5534.0,0.000328,3]
[419209214,1775019047749,-1009.9,0.00032812,120]
[419209215,1775019047759,-300.0,0.00032876,120]
[419209216,1775019047768,-300.0,0.00032876,120]
[419209217,1775019047778,-209.51487984,0.00032876,120]
[419209218,1775019047787,-1000.0,0.00032877,120]
[419209219,1775019047796,-1115.0,0.00032891,5]
[419209220,1775019047806,-151.0,0.00032897,14]
[419209221,1775019047815,-27980.39,0.000329,2]
[419209222,1775019047824,-9127.68,0.000329,30]
[419209223,1775019047834,-7730.48,0.000329,30]
[419209224,1775019047843,-7126.81,0.000329,30]
[419209225,1775019047852,-2809.0,0.00032934,11]
[419209226,1775019047861,-150.0,0.00032967,120]
[419209227,1775019047870,-1000.0,0.0003297,2]
[419209228,1775019047880,-1000.0,0.0003297,2]
[419209229,1775019047889,-1188.51483974,0.0003297,2]
[419209230,1775019047898,-500.0,0.0003297,2]
[419209231,1775019047908,-500.0,0.0003297,2]
[419209232,1775019047917,-762.87386502,0.0003297,2]
[419209233,1775019047926,-150.0,0.0003298,30]
[419209234,1775019047936,-1243.57659104,0.00032985,30]
[419209235,1775019047946,-1199.20597015,0.00032998,30]
[419209236,1775019047955,-151.0,0.00032998,30]
[419209237,1775019047964,-616.22870763,0.00033,120]
[419209238,1775019047974,-1490.70499641,0.00033,120]
[419209239,1775019047984,-268.17305255,0.00033,120]
[419209240,1775019047996,-506.36666556,0.00033,120]
[419209241,1775019048007,-429.65546234,0.00033,120]
[419209242,1775019048016,-403.10901148,0.00033,120]
[419209243,1775019048027,-160.0,0.00033,30]
[419209244,1775019048038,-200.0,0.00033,10]
[419209245,1775019048049,-150.0,0.00033043,2]
[419209246,1775019048059,-300.0,0.000331,10]
[419209247,1775019048069,-1009.9,0.00033125,120]
[419209248,1775019048079,-10000.0,0.000332,120]
[419209249,1775019048088,-152.0,0.00033282,4]
[419209250,1775019048098,-7126.81,0.000333,30]
[419209251,1775019048110,-10746.1871,0.000333,87]
[419209252,1775019048120,-150.0,0.00033325,120]
[419209253,1775019048131,-150.0,0.00033325,120]
[419209254,1775019048140,-805.6,0.00033333,2]
[419209255,1775019048150,-5534.0,0.000334,5]
[419209256,1775019048162,-151.0,0.00033411,5]
[419209257,1775019048172,-1009.9,0.00033438,120]
[419209258,1775019048185,-7730.48,0.000335,30]
[419209259,1775019048195,-9127.68,0.000335,30]
[419209260,1775019048204,-150.0,0.0003354,120]
[419209264,1775019048341,-1192.41067818,0.00033544,2]
[419209266,1775019048351,-27980.39,0.000336,2]
[419209268,1775019048360,-150.0,0.00033618,120]
[419209270,1775019048370,-500.0,0.00033634,120]
[419209273,1775019048380,-7126.81,0.000337,30]
[419209275,1775019048389,-1009.9,0.0003375,120]
[419209277,1775019048399,-580.0,0.00033771,11]
[419209278,1775019048408,-616.22870763,0.000339,120]
[419209280,1775019048418,-1490.70499641,0.000339,120]
[419209282,1775019048427,-268.17305255,0.000339,120]
[419209284,1775019048437,-506.36666556,0.000339,120]
[419209286,1775019048449,-429.65546234,0.000339,120]
[419209287,1775019048459,-403.10901148,0.000339,120]
[419209288,1775019048469,-3143.85,0.00033973,2]
[419209290,1775019048478,-1444.0,0.00033973,120]
[419209292,1775019048487,-4250.755,0.00034034,37]
[419209294,1775019048497,-171.422,0.00034034,37]
[419209296,1775019048506,-1009.9,0.00034062,120]
[419209298,1775019048515,-600.0,0.00034247,120]
[419209300,1775019048525,-9127.68,0.000343,30]
[419209302,1775019048535,-7730.48,0.000343,30]
[419209304,1775019048544,-7126.81,0.000343,30]
[419209306,1775019048554,-1009.9,0.00034375,120]
[419209308,1775019048563,-150.0,0.000344,120]
[419209310,1775019048573,-150.0,0.000344,120]
[419209312,1775019048582,-150.0,0.000344,120]
[419209314,1775019048592,-27980.39,0.000344,2]
[419209316,1775019048602,-1036.0,0.0003441,30]
[419209318,1775019048612,-485.0,0.0003441,30]
[419209320,1775019048622,-151.0,0.00034411,5]
[419209322,1775019048632,-475.0,0.00034426,30]
[419209324,1775019048642,-153.0,0.00034426,30]
[419209326,1775019048652,-1076.0,0.00034426,30]
[419209328,1775019048662,-232.12,0.00034426,60]
[419209330,1775019048672,-472.0,0.00034431,30]
[419209332,1775019048682,-2531.0,0.00034431,30]
[419209334,1775019048691,-363.51560483,0.00034444,30]
[419209336,1775019048700,-363.51560483,0.00034444,30]
[419209338,1775019048710,-1115.0,0.00034536,5]
[419209340,1775019048719,-2815.0,0.00034537,11]
[419209342,1775019048729,-766.67,0.00034565,7]
[419209345,1775019048739,-1156.41848616,0.00034599,30]
[419209347,1775019048749,-151.0,0.00034599,30]
[419209349,1775019048758,-621.0,0.00034636,2]
[419209351,1775019048768,-1045.0,0.00034636,2]
[419209353,1775019048778,-1346.0,0.00034636,2]
[419209355,1775019048788,-3519.0,0.00034636,2]
[419209357,1775019048798,-1263.0,0.00034636,2]
[419209358,1775019048808,-150.0,0.00034636,2]
[419209361,1775019048818,-415.0,0.00034636,2]
[419209362,1775019048828,-6016.0,0.00034636,2]
[419209364,1775019048838,-825.0,0.00034646,90]
[419209366,1775019048848,-500.0,0.00034658,2]
[419209368,1775019048858,-1000.0,0.0003467,2]
[419209370,1775019048868,-500.0,0.0003467,2]
[419209372,1775019048877,-151.0,0.00034672,37]
[419209374,1775019048886,-1009.9,0.00034687,120]
[419209376,1775019048896,-150.0,0.00034696,2]
[419209378,1775019048906,-7126.81,0.000347,30]
[419209380,1775019048915,-13815.9783,0.000347,92]
[419209383,1775019048931,-170.326641,0.00034778,14]
[419209385,1775019048941,-20629.80019668,0.00034781,7]
[419209387,1775019048950,-15621.26015249,0.00034781,7]
[419209389,1775019048960,-150.0,0.00034791,120]
[419209391,1775019048970,-1500.0,0.00034795,2]
[419209393,1775019048980,-152.0,0.00034947,5]
[419209395,1775019048990,-1009.9,0.00035,120]
[419209398,1775019049001,-616.22870763,0.00035,120]
[419209400,1775019049011,-1490.70499641,0.00035,120]
[419209402,1775019049021,-268.17305255,0.00035,120]
[419209404,1775019049030,-506.36666556,0.00035,120]
[419209406,1775019049040,-429.65546234,0.00035,120]
[419209408,1775019049050,-403.10901148,0.00035,120]
[419209410,1775019049060,-500.0,0.00035,2]
[419209412,1775019049071,-150.0,0.00035,2]
[419209414,1775019049081,-163.931,0.00035,2]
[419209416,1775019049091,-9127.68,0.00035,30]
[419209418,1775019049101,-7730.48,0.00035,30]
[419209420,1775019049111,-993.10976,0.00035,30]
[419209422,1775019049121,-300.0,0.00035,5]
[419209424,1775019049131,-200.0,0.00035,3]
[419209426,1775019049140,-500.0,0.00035171,120]
[419209428,1775019049151,-500.0,0.00035171,120]
[419209430,1775019049162,-500.0,0.00035171,120]
[419209432,1775019049172,-500.0,0.00035171,120]
[419209434,1775019049182,-500.0,0.00035171,120]
[419209436,1775019049191,-500.0,0.00035171,120]
[419209438,1775019049201,-704.1893726,0.00035171,120]
[419209441,1775019049211,-552.6784117,0.00035171,120]
[419209443,1775019049221,-236.1479478,0.00035171,120]
[419209445,1775019049231,-500.0,0.00035171,120]
[419209447,1775019049239,-500.0,0.00035171,120]
[419209449,1775019049250,-678.1779864,0.00035171,120]
[419209451,1775019049259,-153.5453063,0.00035171,120]
[419209453,1775019049270,-323.4778709,0.00035171,120]
[419209455,1775019049280,-252.5679505,0.00035171,120]
[419209457,1775019049290,-500.0,0.00035171,120]
[419209459,1775019049300,-949.1788243,0.00035171,120]
[419209461,1775019049309,-500.0,0.00035171,120]
[419209463,1775019049319,-750.0,0.00035171,120]
[419209465,1775019049329,-500.0,0.00035171,120]
[419209467,1775019049339,-151.0836206,0.00035171,120]
[419209469,1775019049349,-500.0,0.00035171,120]
[419209471,1775019049359,-500.0,0.00035171,120]
[419209473,1775019049369,-500.0,0.00035171,120]
[419209475,1775019049378,-500.0,0.00035171,120]
[419209477,1775019049388,-500.0,0.00035171,120]
[419209479,1775019049398,-500.0,0.00035171,120]
[419209481,1775019049407,-500.0,0.00035171,120]
[419209484,1775019049422,-801.6342175,0.00035171,120]
[419209486,1775019049432,-500.0,0.00035171,120]
[419209488,1775019049442,-500.0,0.00035171,120]
[419209490,1775019049452,-500.0,0.00035171,120]
[419209492,1775019049462,-500.0,0.00035171,120]
[419209494,1775019049472,-519.6173408,0.00035171,120]
[419209497,1775019049483,-500.0,0.00035171,120]
[419209498,1775019049492,-802.7477692,0.00035171,120]
[419209500,1775019049502,-10000.0,0.000352,120]
[419209502,1775019049512,-27980.39,0.000352,2]
[419209505,1775019049523,-993.10976,0.000352,30]
[419209507,1775019049532,-7126.81,0.000352,30]
[419209509,1775019049542,-1000.0,0.000352,30]
[419209511,1775019049551,-1000.0,0.000352,30]
[419209513,1775019049561,-1000.0,0.000352,30]
[419209515,1775019049571,-1000.0,0.000352,30]
[419209517,1775019049581,-652.488,0.000352,30]
[419209519,1775019049591,-1679.14034027,0.00035253,2]
[419209683,1775019051232,-500.0,8.739e-05,2]
[419209686,1775019051242,-165.38538891,0.00035253,2]
[419209732,1775019052215,-504.0,0.00013111,2]
[419209733,1775019052225,-504.0,0.00014373,3]
[419209734,1775019052234,-504.0,0.00015635,4]
[419209735,1775019052244,-1076.0,0.00025,2]
[419209736,1775019052254,-20231.5403759,0.00035253,2]
[419209737,1775019052263,-151.0,0.00035253,7]
[419209738,1775019052274,-499.964857,0.00035253,7]
[419209739,1775019052284,-1002.143556,0.00035253,7]
[419209740,1775019052294,-499.964857,0.00035253,7]
[419209741,1775019052303,-1002.143556,0.00035253,7]
[419209742,1775019052312,-151.0,0.00035253,7]
[419209743,1775019052322,-499.964857,0.00035253,7]
[419209744,1775019052331,-151.0,0.00035253,7]
[419209745,1775019052340,-839.001389,0.00035253,7]
[419209746,1775019052350,-1002.143556,0.00035253,7]
[419209747,1775019052360,-499.964857,0.00035253,7]
[419209748,1775019052369,-151.0,0.00035253,7]
[419209749,1775019052378,-1247.861813,0.00035253,7]
[419209750,1775019052388,-151.0,0.00035253,7]
[419209751,1775019052397,-248.77608,0.00035253,7]
[419209752,1775019052406,-839.001389,0.00035253,7]
[419209753,1775019052415,-1002.143556,0.00035253,7]
[419209754,1775019052424,-1247.861813,0.00035253,7]
[419209755,1775019052433,-151.0,0.00035253,7]
[419209756,1775019052442,-839.001389,0.00035253,7]
[419209757,1775019052453,-290.330327,0.00035253,7]
[419209758,1775019052462,-151.0,0.00035253,7]
[419209759,1775019052471,-892.253268,0.00035253,7]
[419209760,1775019052482,-1247.861813,0.00035253,7]
[419209761,1775019052491,-1541.735085,0.00035253,7]
[419209762,1775019052500,-151.0,0.00035253,7]
[419209763,1775019052509,-839.001389,0.00035253,7]
[419209764,1775019052519,-151.0,0.00035253,7]
[419209765,1775019052528,-892.253268,0.00035253,7]
[419209766,1775019052539,-1247.861813,0.00035253,7]
[419209767,1775019052646,-151.0,0.00035253,7]
[419209768,1775019052657,-1541.735085,0.00035253,7]
[419209769,1775019052668,-892.253268,0.00035253,7]
[419209770,1775019052678,-151.0,0.00035253,7]
[419209771,1775019052688,-1541.735085,0.00035253,7]
[419209772,1775019052699,-151.0,0.00035253,7]
[419209773,1775019052708,-167.533581,0.00035253,7]
[419209774,1775019052719,-892.253268,0.00035253,7]
[419209775,1775019052728,-175.599481,0.00035253,7]
[419209776,1775019052738,-151.0,0.00035253,7]
[419209777,1775019052749,-151.0,0.00035253,7]
[419209778,1775019052759,-167.533581,0.00035253,7]
[419209779,1775019052771,-1541.735085,0.00035253,7]
[419209780,1775019052780,-175.599481,0.00035253,7]